[Event "Titled Tuesday Blitz November 16 2021"]
[White "Terry, Renato"]
[Black "Antipov, Mikhail Al."]
[WhiteFideId "3803457"]
[BlackFideId "4107012"]
[WhiteElo "2577"]
[BlackElo "2587"]
[Result "0-1"]
[Round "04"]
[TimeControl "180+1"]
[Date "2021.11.16"]
[WhiteClock "0:00:04"]
[BlackClock "0:00:06"]

1. d4 {[%clk 0:03:00]}  Nf6 {[%clk 0:03:00]} 2. Bg5 {[%clk 0:03:01]}  c6 {[%clk 0:02:59]} 3. Nc3 {[%clk 0:02:58]}  d5 {[%clk 0:02:55]} 4. e3 {[%clk 0:02:56]}  Qb6 {[%clk 0:02:48]} 5. Rb1 {[%clk 0:02:46]}  Bf5 {[%clk 0:02:46]} 6. Bd3 {[%clk 0:02:44]}  Bxd3 {[%clk 0:02:45]} 7. Qxd3 {[%clk 0:02:45]}  Nbd7 {[%clk 0:02:44]} 8. Nf3 {[%clk 0:02:42]}  e6 {[%clk 0:02:45]} 9. O-O {[%clk 0:02:42]}  Bb4 {[%clk 0:02:40]} 10. h3 {[%clk 0:02:29]}  Qa5 {[%clk 0:02:34]} 11. Nd2 {[%clk 0:02:21]}  O-O {[%clk 0:02:12]} 12. Nb3 {[%clk 0:02:16]}  Qc7 {[%clk 0:02:10]} 13. Bf4 {[%clk 0:02:16]}  Qd8 {[%clk 0:02:06]} 14. Ne2 {[%clk 0:02:12]}  Re8 {[%clk 0:02:04]} 15. c4 {[%clk 0:02:03]}  a5 {[%clk 0:01:50]} 16. a3 {[%clk 0:02:01]}  Bf8 {[%clk 0:01:49]} 17. Rfd1 {[%clk 0:01:56]}  Nb6 {[%clk 0:01:46]} 18. Nd2 {[%clk 0:01:55]}  a4 {[%clk 0:01:45]} 19. Rbc1 {[%clk 0:01:55]}  Ra5 {[%clk 0:01:35]} 20. Be5 {[%clk 0:01:43]}  Nfd7 {[%clk 0:01:33]} 21. Bg3 {[%clk 0:01:44]}  Qa8 {[%clk 0:01:11]} 22. Rc2 {[%clk 0:01:40]}  Qa6 {[%clk 0:01:05]} 23. Rdc1 {[%clk 0:01:39]}  e5 {[%clk 0:01:01]} 24. Bxe5 {[%clk 0:01:34]}  Nxe5 {[%clk 0:00:59]} 25. dxe5 {[%clk 0:01:35]}  Rxe5 {[%clk 0:00:56]} 26. Qd4 {[%clk 0:01:35]}  Re8 {[%clk 0:00:47]} 27. Ng3 {[%clk 0:01:32]}  g6 {[%clk 0:00:37]} 28. Qg4 {[%clk 0:01:19]}  dxc4 {[%clk 0:00:14]} 29. Nxc4 {[%clk 0:01:20]}  Nxc4 {[%clk 0:00:14]} 30. Rxc4 {[%clk 0:01:20]}  Qb5 {[%clk 0:00:13]} 31. R1c2 {[%clk 0:01:14]}  Raa8 {[%clk 0:00:13]} 32. Ne4 {[%clk 0:01:05]}  Qe5 {[%clk 0:00:05]} 33. Qh4 {[%clk 0:00:51]}  Be7 {[%clk 0:00:03]} 34. Qh6 {[%clk 0:00:49]}  Red8 {[%clk 0:00:03]} 35. Nc3 {[%clk 0:00:26]}  Bg5 {[%clk 0:00:02]} 36. Re4 {[%clk 0:00:11]}  Qxe4 {[%clk 0:00:02]} 37. Qxh7+ {[%clk 0:00:10]}  Kxh7 {[%clk 0:00:02]} 38. Nxe4 {[%clk 0:00:11]}  Be7 {[%clk 0:00:02]} 39. g4 {[%clk 0:00:11]}  Kg7 {[%clk 0:00:03]} 40. Kg2 {[%clk 0:00:11]}  Rd3 {[%clk 0:00:03]} 41. Kf3 {[%clk 0:00:11]}  Rad8 {[%clk 0:00:04]} 42. Ke2 {[%clk 0:00:12]}  Rb3 {[%clk 0:00:03]} 43. Nd2 {[%clk 0:00:12]}  Rb5 {[%clk 0:00:03]} 44. Ne4 {[%clk 0:00:12]}  Rd7 {[%clk 0:00:02]} 45. Nc3 {[%clk 0:00:12]}  Rc5 {[%clk 0:00:02]} 46. Rd2 {[%clk 0:00:12]}  Rxd2+ {[%clk 0:00:02]} 47. Kxd2 {[%clk 0:00:13]}  Rc4 {[%clk 0:00:03]} 48. Kd3 {[%clk 0:00:13]}  b5 {[%clk 0:00:03]} 49. Ne4 {[%clk 0:00:13]}  Bf6 {[%clk 0:00:03]} 50. Nd2 {[%clk 0:00:12]}  Bxb2 {[%clk 0:00:02]} 51. Nxc4 {[%clk 0:00:13]}  bxc4+ {[%clk 0:00:03]} 52. Kxc4 {[%clk 0:00:14]}  Bxa3 {[%clk 0:00:04]} 53. f4 {[%clk 0:00:13]}  Be7 {[%clk 0:00:04]} 54. e4 {[%clk 0:00:13]}  a3 {[%clk 0:00:04]} 55. Kb3 {[%clk 0:00:14]}  g5 {[%clk 0:00:04]} 56. fxg5 {[%clk 0:00:11]}  Bxg5 {[%clk 0:00:05]} 57. Kxa3 {[%clk 0:00:11]}  Kf6 {[%clk 0:00:06]} 58. Kb4 {[%clk 0:00:11]}  Ke5 {[%clk 0:00:04]} 59. Kc5 {[%clk 0:00:12]}  Kxe4 {[%clk 0:00:05]} 60. Kxc6 {[%clk 0:00:13]}  Kf4 {[%clk 0:00:06]} 61. Kd7 {[%clk 0:00:03]}  Kg3 {[%clk 0:00:05]} 62. Ke8 {[%clk 0:00:04]}  f6 {[%clk 0:00:05]} 63. h4 {[%clk 0:00:04]}  Kxh4 {[%clk 0:00:06]} 0-1


[Site "https://www.chess.com"]

[Event "Titled Tuesday Blitz November 16 2021"]
[White "Xiong, Jeffery"]
[Black "Sorokin, Aleksey"]
[WhiteFideId "2047640"]
[BlackFideId "24176460"]
[WhiteElo "2699"]
[BlackElo "2476"]
[Result "1-0"]
[Round "04"]
[TimeControl "180+1"]
[Date "2021.11.16"]
[WhiteClock "0:00:22"]
[BlackClock "0:00:03"]

1. d4 {[%clk 0:03:00]}  Nf6 {[%clk 0:02:59]} 2. Nf3 {[%clk 0:03:01]}  g6 {[%clk 0:02:59]} 3. Nbd2 {[%clk 0:03:00]}  d5 {[%clk 0:02:58]} 4. b3 {[%clk 0:03:00]}  Bg7 {[%clk 0:02:57]} 5. Bb2 {[%clk 0:03:00]}  O-O {[%clk 0:02:56]} 6. e3 {[%clk 0:03:00]}  Nbd7 {[%clk 0:02:46]} 7. Be2 {[%clk 0:03:00]}  c5 {[%clk 0:02:45]} 8. O-O {[%clk 0:02:59]}  cxd4 {[%clk 0:02:45]} 9. Bxd4 {[%clk 0:03:00]}  Re8 {[%clk 0:02:43]} 10. c4 {[%clk 0:02:56]}  e5 {[%clk 0:02:40]} 11. Bb2 {[%clk 0:02:56]}  Qa5 {[%clk 0:02:17]} 12. cxd5 {[%clk 0:02:55]}  Nxd5 {[%clk 0:02:16]} 13. Nc4 {[%clk 0:02:55]}  Qc5 {[%clk 0:02:11]} 14. Rc1 {[%clk 0:02:55]}  N7f6 {[%clk 0:01:50]} 15. Ncxe5 {[%clk 0:02:53]}  Qe7 {[%clk 0:01:49]} 16. Bc4 {[%clk 0:02:32]}  Be6 {[%clk 0:01:48]} 17. Ng5 {[%clk 0:02:32]}  Rad8 {[%clk 0:01:46]} 18. Qf3 {[%clk 0:02:32]}  Ng4 {[%clk 0:01:28]} 19. Nxe6 {[%clk 0:02:27]}  Nxe5 {[%clk 0:00:51]} 20. Bxe5 {[%clk 0:02:25]}  fxe6 {[%clk 0:00:49]} 21. Bxg7 {[%clk 0:02:12]}  Kxg7 {[%clk 0:00:50]} 22. Rfd1 {[%clk 0:02:06]}  Rf8 {[%clk 0:00:48]} 23. Qe4 {[%clk 0:02:04]}  Qf6 {[%clk 0:00:48]} 24. Qd4 {[%clk 0:01:43]}  e5 {[%clk 0:00:42]} 25. Qb2 {[%clk 0:01:43]}  Nb6 {[%clk 0:00:25]} 26. Rxd8 {[%clk 0:01:43]}  Rxd8 {[%clk 0:00:26]} 27. Be2 {[%clk 0:01:43]}  Rd7 {[%clk 0:00:24]} 28. Bf3 {[%clk 0:01:40]}  Re7 {[%clk 0:00:24]} 29. Be4 {[%clk 0:01:37]}  Qd6 {[%clk 0:00:24]} 30. h4 {[%clk 0:01:33]}  Qf6 {[%clk 0:00:23]} 31. g3 {[%clk 0:01:33]}  g5 {[%clk 0:00:20]} 32. hxg5 {[%clk 0:01:32]}  Qxg5 {[%clk 0:00:20]} 33. Kg2 {[%clk 0:01:32]}  h5 {[%clk 0:00:18]} 34. Rh1 {[%clk 0:01:30]}  Nd7 {[%clk 0:00:18]} 35. Bxb7 {[%clk 0:01:24]}  Nf6 {[%clk 0:00:17]} 36. Bf3 {[%clk 0:01:24]}  Qf5 {[%clk 0:00:12]} 37. Rh4 {[%clk 0:01:23]}  Rf7 {[%clk 0:00:07]} 38. Qe2 {[%clk 0:01:13]}  Kg6 {[%clk 0:00:05]} 39. Qc4 {[%clk 0:01:04]}  Re7 {[%clk 0:00:04]} 40. Be4 {[%clk 0:01:03]}  Nxe4 {[%clk 0:00:04]} 41. Qxe4 {[%clk 0:01:04]}  Qxe4+ {[%clk 0:00:03]} 42. Rxe4 {[%clk 0:01:05]}  Kf5 {[%clk 0:00:03]} 43. Rh4 {[%clk 0:01:05]}  Kg5 {[%clk 0:00:03]} 44. Ra4 {[%clk 0:01:03]}  Rc7 {[%clk 0:00:03]} 45. Ra5 {[%clk 0:01:00]}  Kf6 {[%clk 0:00:03]} 46. e4 {[%clk 0:00:59]}  Rd7 {[%clk 0:00:03]} 47. Kf3 {[%clk 0:00:56]}  Rc7 {[%clk 0:00:03]} 48. Ke2 {[%clk 0:00:48]}  Rc2+ {[%clk 0:00:02]} 49. Ke3 {[%clk 0:00:49]}  Rc3+ {[%clk 0:00:03]} 50. Kd2 {[%clk 0:00:49]}  Rc7 {[%clk 0:00:03]} 51. Ra6+ {[%clk 0:00:46]}  Kg5 {[%clk 0:00:03]} 52. Re6 {[%clk 0:00:46]}  Kg4 {[%clk 0:00:02]} 53. Rxe5 {[%clk 0:00:45]}  Kf3 {[%clk 0:00:03]} 54. Rf5+ {[%clk 0:00:39]}  Kxe4 {[%clk 0:00:03]} 55. Rxh5 {[%clk 0:00:39]}  Rd7+ {[%clk 0:00:02]} 56. Kc2 {[%clk 0:00:36]}  Rc7+ {[%clk 0:00:02]} 57. Kb2 {[%clk 0:00:36]}  Rd7 {[%clk 0:00:03]} 58. Rh4+ {[%clk 0:00:36]}  Kd3 {[%clk 0:00:03]} 59. Rf4 {[%clk 0:00:36]}  Re7 {[%clk 0:00:03]} 60. b4 {[%clk 0:00:29]}  Rc7 {[%clk 0:00:02]} 61. Kb3 {[%clk 0:00:28]}  Rc3+ {[%clk 0:00:02]} 62. Ka4 {[%clk 0:00:28]}  Kc2 {[%clk 0:00:03]} 63. g4 {[%clk 0:00:22]}  Kb2 {[%clk 0:00:03]} 64. g5 {[%clk 0:00:23]}  Ra3+ {[%clk 0:00:03]} 65. Kb5 {[%clk 0:00:23]}  Rxa2 {[%clk 0:00:03]} 66. g6 {[%clk 0:00:22]}  Ra1 {[%clk 0:00:04]} 67. Rg4 {[%clk 0:00:22]}  Rd1 {[%clk 0:00:04]} 68. g7 {[%clk 0:00:22]}  Rd8 {[%clk 0:00:03]} 69. g8=Q {[%clk 0:00:22]} 1-0


[Site "https://www.chess.com"]

[Event "Titled Tuesday Blitz November 16 2021"]
[White "Yeletsky, Ivan"]
[Black "Krzywda, Andrzej"]
[WhiteFideId "24180327"]
[BlackFideId "1114565"]
[WhiteElo "2352"]
[BlackElo "2139"]
[Result "1-0"]
[Round "04"]
[TimeControl "180+1"]
[Date "2021.11.16"]
[WhiteClock "0:01:51"]
[BlackClock "0:00:14"]

1. c4 {[%clk 0:03:00]}  e6 {[%clk 0:02:57]} 2. g3 {[%clk 0:03:00]}  Nf6 {[%clk 0:02:56]} 3. Bg2 {[%clk 0:03:01]}  d5 {[%clk 0:02:56]} 4. b3 {[%clk 0:03:01]}  d4 {[%clk 0:02:51]} 5. Nf3 {[%clk 0:03:00]}  Nc6 {[%clk 0:02:51]} 6. O-O {[%clk 0:03:00]}  Be7 {[%clk 0:02:48]} 7. e3 {[%clk 0:03:00]}  O-O {[%clk 0:02:47]} 8. exd4 {[%clk 0:02:56]}  Nxd4 {[%clk 0:02:47]} 9. Nxd4 {[%clk 0:02:57]}  Qxd4 {[%clk 0:02:47]} 10. Nc3 {[%clk 0:02:58]}  e5 {[%clk 0:02:47]} 11. Bb2 {[%clk 0:02:57]}  Qd8 {[%clk 0:02:46]} 12. Qc2 {[%clk 0:02:42]}  Be6 {[%clk 0:02:40]} 13. Bxb7 {[%clk 0:02:37]}  Rb8 {[%clk 0:02:37]} 14. Bg2 {[%clk 0:02:37]}  Qd7 {[%clk 0:02:33]} 15. Rfe1 {[%clk 0:02:35]}  Rfd8 {[%clk 0:02:29]} 16. Rxe5 {[%clk 0:02:33]}  Qxd2 {[%clk 0:02:27]} 17. Qxd2 {[%clk 0:02:31]}  Rxd2 {[%clk 0:02:28]} 18. Re2 {[%clk 0:02:31]}  Rxe2 {[%clk 0:02:23]} 19. Nxe2 {[%clk 0:02:32]}  Bxc4 {[%clk 0:02:19]} 20. Nd4 {[%clk 0:02:30]}  Bd5 {[%clk 0:02:14]} 21. Rc1 {[%clk 0:02:11]}  Bxg2 {[%clk 0:01:51]} 22. Kxg2 {[%clk 0:02:12]}  Nd5 {[%clk 0:01:41]} 23. Nc6 {[%clk 0:02:11]}  Re8 {[%clk 0:01:41]} 24. Rd1 {[%clk 0:02:09]}  Nf6 {[%clk 0:01:30]} 25. Nxe7+ {[%clk 0:02:03]}  Rxe7 {[%clk 0:01:31]} 26. Rd8+ {[%clk 0:02:04]}  Ne8 {[%clk 0:01:28]} 27. Ra8 {[%clk 0:02:04]}  c6 {[%clk 0:01:13]} 28. Ba3 {[%clk 0:02:03]}  Re6 {[%clk 0:01:03]} 29. Rxa7 {[%clk 0:02:03]}  f6 {[%clk 0:00:37]} 30. Bc5 {[%clk 0:02:02]}  Nd6 {[%clk 0:00:32]} 31. a4 {[%clk 0:01:53]}  Ne4 {[%clk 0:00:32]} 32. Be3 {[%clk 0:01:53]}  Nc3 {[%clk 0:00:24]} 33. a5 {[%clk 0:01:52]}  Nd5 {[%clk 0:00:21]} 34. Bc5 {[%clk 0:01:51]}  Re2 {[%clk 0:00:19]} 35. a6 {[%clk 0:01:51]}  Ra2 {[%clk 0:00:18]} 36. Ra8+ {[%clk 0:01:51]}  Kf7 {[%clk 0:00:19]} 37. a7 {[%clk 0:01:52]}  Kg6 {[%clk 0:00:19]} 38. Re8 {[%clk 0:01:51]}  Nc7 {[%clk 0:00:18]} 39. Rc8 {[%clk 0:01:52]}  Ne6 {[%clk 0:00:15]} 40. Be3 {[%clk 0:01:51]}  c5 {[%clk 0:00:14]} 41. a8=Q {[%clk 0:01:51]} 1-0


[Site "https://www.chess.com"]

[Event "Titled Tuesday Blitz November 16 2021"]
[White "Yeremyan, Alen"]
[Black "Zubov, Alexander"]
[WhiteFideId "13308998"]
[BlackFideId "14109409"]
[WhiteElo "2158"]
[BlackElo "2685"]
[Result "0-1"]
[Round "04"]
[TimeControl "180+1"]
[Date "2021.11.16"]
[WhiteClock "0:01:33"]
[BlackClock "0:00:43"]

1. e4 {[%clk 0:02:55]}  c5 {[%clk 0:02:56]} 2. Nc3 {[%clk 0:02:55]}  e6 {[%clk 0:02:56]} 3. d4 {[%clk 0:02:52]}  cxd4 {[%clk 0:02:54]} 4. Qxd4 {[%clk 0:02:52]}  Nc6 {[%clk 0:02:53]} 5. Qd2 {[%clk 0:02:52]}  Nf6 {[%clk 0:02:51]} 6. a3 {[%clk 0:02:45]}  d5 {[%clk 0:02:47]} 7. exd5 {[%clk 0:02:43]}  exd5 {[%clk 0:02:47]} 8. Bd3 {[%clk 0:02:42]}  Bd6 {[%clk 0:02:30]} 9. Nge2 {[%clk 0:02:32]}  O-O {[%clk 0:02:26]} 10. b3 {[%clk 0:02:32]}  d4 {[%clk 0:02:05]} 11. Nb5 {[%clk 0:02:30]}  Be5 {[%clk 0:02:02]} 12. Bb2 {[%clk 0:02:23]}  Qb6 {[%clk 0:01:43]} 13. f4 {[%clk 0:02:19]}  Bb8 {[%clk 0:01:38]} 14. Nbxd4 {[%clk 0:02:17]}  Nd5 {[%clk 0:01:15]} 15. Nxc6 {[%clk 0:02:11]}  bxc6 {[%clk 0:01:14]} 16. O-O-O {[%clk 0:02:08]}  Bg4 {[%clk 0:01:04]} 17. Rde1 {[%clk 0:02:03]}  Rd8 {[%clk 0:00:57]} 18. Nc3 {[%clk 0:02:02]}  Bxf4 {[%clk 0:00:56]} 19. Nxd5 {[%clk 0:01:32]}  Bxd2+ {[%clk 0:00:55]} 20. Kxd2 {[%clk 0:01:33]}  Rxd5 {[%clk 0:00:54]} 21. Rhf1 {[%clk 0:01:33]}  Bf5 {[%clk 0:00:43]} 0-1


[Site "https://www.chess.com"]

[Event "Titled Tuesday Blitz November 16 2021"]
[White "Yoo, Christopher Woojin"]
[Black "Erdogdu, Mert"]
[WhiteFideId "30909694"]
[BlackFideId "6301495"]
[WhiteElo "2105"]
[BlackElo "2485"]
[Result "1-0"]
[Round "04"]
[TimeControl "180+1"]
[Date "2021.11.16"]
[WhiteClock "0:00:46"]
[BlackClock "0:00:13"]

1. e4 {[%clk 0:03:00]}  c5 {[%clk 0:03:00]} 2. Nf3 {[%clk 0:03:01]}  d6 {[%clk 0:03:00]} 3. d4 {[%clk 0:03:01]}  cxd4 {[%clk 0:03:00]} 4. Nxd4 {[%clk 0:03:02]}  Nf6 {[%clk 0:03:01]} 5. Nc3 {[%clk 0:03:02]}  a6 {[%clk 0:03:01]} 6. h4 {[%clk 0:03:02]}  e5 {[%clk 0:02:57]} 7. Nf5 {[%clk 0:03:01]}  d5 {[%clk 0:02:51]} 8. Qf3 {[%clk 0:02:59]}  dxe4 {[%clk 0:02:35]} 9. Nxe4 {[%clk 0:02:58]}  Nxe4 {[%clk 0:02:35]} 10. Qxe4 {[%clk 0:02:58]}  Nc6 {[%clk 0:02:35]} 11. Bc4 {[%clk 0:02:49]}  Qf6 {[%clk 0:02:19]} 12. Ne3 {[%clk 0:02:12]}  Bc5 {[%clk 0:02:10]} 13. O-O {[%clk 0:02:09]}  O-O {[%clk 0:02:05]} 14. Nd5 {[%clk 0:02:08]}  Qg6 {[%clk 0:01:44]} 15. Qxg6 {[%clk 0:02:05]}  hxg6 {[%clk 0:01:44]} 16. Be3 {[%clk 0:01:52]}  Bxe3 {[%clk 0:01:39]} 17. Nxe3 {[%clk 0:01:53]}  Bd7 {[%clk 0:01:18]} 18. Rad1 {[%clk 0:01:53]}  Rfd8 {[%clk 0:01:18]} 19. Rd6 {[%clk 0:01:50]}  Be8 {[%clk 0:01:17]} 20. Rxg6 {[%clk 0:01:45]}  b5 {[%clk 0:01:07]} 21. Bb3 {[%clk 0:01:42]}  Nd4 {[%clk 0:01:07]} 22. Rb6 {[%clk 0:01:36]}  a5 {[%clk 0:00:58]} 23. Rd1 {[%clk 0:01:20]}  a4 {[%clk 0:00:53]} 24. Bd5 {[%clk 0:01:19]}  Rac8 {[%clk 0:00:51]} 25. c3 {[%clk 0:01:18]}  Ne2+ {[%clk 0:00:51]} 26. Kf1 {[%clk 0:01:18]}  Nf4 {[%clk 0:00:51]} 27. Bf3 {[%clk 0:01:17]}  Rxd1+ {[%clk 0:00:32]} 28. Bxd1 {[%clk 0:01:18]}  a3 {[%clk 0:00:32]} 29. bxa3 {[%clk 0:01:12]}  Rxc3 {[%clk 0:00:31]} 30. g3 {[%clk 0:01:12]}  Ne6 {[%clk 0:00:28]} 31. Rb8 {[%clk 0:01:08]}  Kf8 {[%clk 0:00:24]} 32. a4 {[%clk 0:01:07]}  b4 {[%clk 0:00:14]} 33. Rxb4 {[%clk 0:00:57]}  Nd4 {[%clk 0:00:14]} 34. Rb2 {[%clk 0:00:49]}  Rc1 {[%clk 0:00:14]} 35. Ke1 {[%clk 0:00:48]}  Bxa4 {[%clk 0:00:13]} 36. Kd2 {[%clk 0:00:46]} 1-0


[Site "https://www.chess.com"]

[Event "Titled Tuesday Blitz November 16 2021"]
[White "Alavi, Sayed Javad"]
[Black "Ahmadzada, Ahmad"]
[WhiteFideId "12500607"]
[BlackFideId "13413007"]
[WhiteElo "2495"]
[BlackElo "2226"]
[Result "1/2-1/2"]
[Round "05"]
[TimeControl "180+1"]
[Date "2021.11.16"]
[WhiteClock "0:00:05"]
[BlackClock "0:00:05"]

1. d4 {[%clk 0:03:00]}  Nf6 {[%clk 0:02:59]} 2. c4 {[%clk 0:03:00]}  e6 {[%clk 0:03:00]} 3. Nc3 {[%clk 0:03:00]}  Nc6 {[%clk 0:03:00]} 4. Nf3 {[%clk 0:02:58]}  Bb4 {[%clk 0:03:00]} 5. Bd2 {[%clk 0:02:56]}  O-O {[%clk 0:03:00]} 6. a3 {[%clk 0:02:51]}  Bxc3 {[%clk 0:02:59]} 7. Bxc3 {[%clk 0:02:52]}  Ne4 {[%clk 0:02:59]} 8. Rc1 {[%clk 0:02:46]}  d6 {[%clk 0:02:58]} 9. g3 {[%clk 0:02:43]}  Nxc3 {[%clk 0:02:58]} 10. Rxc3 {[%clk 0:02:42]}  e5 {[%clk 0:02:58]} 11. Bg2 {[%clk 0:02:18]}  f5 {[%clk 0:02:44]} 12. dxe5 {[%clk 0:01:29]}  dxe5 {[%clk 0:02:41]} 13. Qd5+ {[%clk 0:01:30]}  Kh8 {[%clk 0:02:40]} 14. O-O {[%clk 0:01:13]}  e4 {[%clk 0:02:35]} 15. Qxd8 {[%clk 0:00:59]}  Rxd8 {[%clk 0:02:34]} 16. Ng5 {[%clk 0:00:58]}  Kg8 {[%clk 0:02:19]} 17. f3 {[%clk 0:00:52]}  h6 {[%clk 0:02:18]} 18. Nh3 {[%clk 0:00:52]}  exf3 {[%clk 0:02:14]} 19. Bxf3 {[%clk 0:00:44]}  Nd4 {[%clk 0:02:11]} 20. Nf4 {[%clk 0:00:44]}  g5 {[%clk 0:02:01]} 21. Nd5 {[%clk 0:00:38]}  c6 {[%clk 0:01:56]} 22. Nc7 {[%clk 0:00:31]}  Rb8 {[%clk 0:01:54]} 23. Bh5 {[%clk 0:00:23]}  Ne6 {[%clk 0:01:14]} 24. Nxe6 {[%clk 0:00:20]}  Bxe6 {[%clk 0:01:15]} 25. b3 {[%clk 0:00:17]}  Kg7 {[%clk 0:01:11]} 26. Re3 {[%clk 0:00:16]}  Kf6 {[%clk 0:01:09]} 27. Bg4 {[%clk 0:00:16]}  Rd4 {[%clk 0:00:32]} 28. Bxf5 {[%clk 0:00:13]}  Bxf5 {[%clk 0:00:31]} 29. Ref3 {[%clk 0:00:14]}  Rd7 {[%clk 0:00:32]} 30. Rxf5+ {[%clk 0:00:14]}  Kg7 {[%clk 0:00:32]} 31. e4 {[%clk 0:00:13]}  Re8 {[%clk 0:00:32]} 32. e5 {[%clk 0:00:13]}  Rde7 {[%clk 0:00:29]} 33. g4 {[%clk 0:00:12]}  Rd8 {[%clk 0:00:12]} 34. e6 {[%clk 0:00:09]}  Rxe6 {[%clk 0:00:08]} 35. Rf7+ {[%clk 0:00:09]}  Kg6 {[%clk 0:00:09]} 36. Rxb7 {[%clk 0:00:08]}  Rd2 {[%clk 0:00:08]} 37. Rf2 {[%clk 0:00:08]}  Rd4 {[%clk 0:00:06]} 38. h3 {[%clk 0:00:07]}  Rd3 {[%clk 0:00:05]} 39. Kg2 {[%clk 0:00:06]}  Ree3 {[%clk 0:00:05]} 40. Rbf7 {[%clk 0:00:06]}  Rg3+ {[%clk 0:00:03]} 41. Kf1 {[%clk 0:00:06]}  Rd6 {[%clk 0:00:03]} 42. c5 {[%clk 0:00:06]}  Re6 {[%clk 0:00:04]} 43. Rf8 {[%clk 0:00:05]}  Rxh3 {[%clk 0:00:03]} 44. Rg8+ {[%clk 0:00:05]}  Kh7 {[%clk 0:00:04]} 45. Rff8 {[%clk 0:00:06]}  Rhe3 {[%clk 0:00:02]} 46. Rh8+ {[%clk 0:00:06]}  Kg7 {[%clk 0:00:03]} 47. Rhg8+ {[%clk 0:00:06]}  Kh7 {[%clk 0:00:04]} 48. Rh8+ {[%clk 0:00:05]}  Kg7 {[%clk 0:00:04]} 49. Rhg8+ {[%clk 0:00:05]}  Kh7 {[%clk 0:00:05]} 1/2-1/2


[Site "https://www.chess.com"]

[Event "Titled Tuesday Blitz November 16 2021"]
[White "Atakishiyev, Elmar"]
[Black "Bortnyk, Olexandr"]
[WhiteFideId "13410547"]
[BlackFideId "14120828"]
[WhiteElo "2088"]
[BlackElo "2723"]
[Result "0-1"]
[Round "05"]
[TimeControl "180+1"]
[Date "2021.11.16"]
[WhiteClock "0:00:01"]
[BlackClock "0:00:04"]

1. e4 {[%clk 0:03:00]}  Nf6 {[%clk 0:02:57]} 2. e5 {[%clk 0:03:00]}  Nd5 {[%clk 0:02:58]} 3. d4 {[%clk 0:03:00]}  d6 {[%clk 0:02:58]} 4. Nf3 {[%clk 0:03:01]}  dxe5 {[%clk 0:02:58]} 5. Nxe5 {[%clk 0:03:00]}  c6 {[%clk 0:02:59]} 6. Bc4 {[%clk 0:02:58]}  Nd7 {[%clk 0:02:56]} 7. O-O {[%clk 0:02:48]}  Nxe5 {[%clk 0:02:56]} 8. dxe5 {[%clk 0:02:49]}  Bf5 {[%clk 0:02:45]} 9. Qe2 {[%clk 0:02:16]}  e6 {[%clk 0:02:44]} 10. Rd1 {[%clk 0:02:15]}  Qh4 {[%clk 0:02:40]} 11. Bxd5 {[%clk 0:01:27]}  exd5 {[%clk 0:02:37]} 12. c3 {[%clk 0:01:28]}  Bc5 {[%clk 0:02:11]} 13. Nd2 {[%clk 0:01:24]}  O-O {[%clk 0:02:04]} 14. Nf3 {[%clk 0:01:24]}  Qh5 {[%clk 0:02:03]} 15. Be3 {[%clk 0:01:23]}  Be7 {[%clk 0:02:02]} 16. Nd4 {[%clk 0:01:20]}  Bg4 {[%clk 0:01:55]} 17. f3 {[%clk 0:01:19]}  Bd7 {[%clk 0:01:56]} 18. Bf2 {[%clk 0:01:09]}  Rae8 {[%clk 0:01:53]} 19. Re1 {[%clk 0:01:02]}  a6 {[%clk 0:01:36]} 20. f4 {[%clk 0:00:58]}  Bg4 {[%clk 0:01:36]} 21. Qd2 {[%clk 0:00:56]}  Qg6 {[%clk 0:01:32]} 22. b4 {[%clk 0:00:53]}  Rc8 {[%clk 0:01:15]} 23. Nb3 {[%clk 0:00:49]}  Bf5 {[%clk 0:01:14]} 24. Bc5 {[%clk 0:00:47]}  Rfe8 {[%clk 0:01:08]} 25. Nd4 {[%clk 0:00:44]}  Be4 {[%clk 0:01:06]} 26. Re3 {[%clk 0:00:41]}  Bh4 {[%clk 0:00:51]} 27. Rf1 {[%clk 0:00:39]}  f5 {[%clk 0:00:48]} 28. Rh3 {[%clk 0:00:35]}  Qg4 {[%clk 0:00:39]} 29. Nf3 {[%clk 0:00:21]}  Bd8 {[%clk 0:00:36]} 30. Rg3 {[%clk 0:00:20]}  Qh5 {[%clk 0:00:37]} 31. Ng5 {[%clk 0:00:19]}  Bxg5 {[%clk 0:00:35]} 32. Rxg5 {[%clk 0:00:20]}  Qf7 {[%clk 0:00:34]} 33. a4 {[%clk 0:00:20]}  Re6 {[%clk 0:00:32]} 34. a5 {[%clk 0:00:20]}  Rce8 {[%clk 0:00:33]} 35. Qe3 {[%clk 0:00:20]}  Rh6 {[%clk 0:00:32]} 36. Re1 {[%clk 0:00:20]}  Ree6 {[%clk 0:00:33]} 37. Bd6 {[%clk 0:00:17]}  Reg6 {[%clk 0:00:31]} 38. Rxg6 {[%clk 0:00:18]}  Rxg6 {[%clk 0:00:31]} 39. Re2 {[%clk 0:00:17]}  h6 {[%clk 0:00:25]} 40. h3 {[%clk 0:00:13]}  Kh7 {[%clk 0:00:24]} 41. Kh2 {[%clk 0:00:12]}  Qe6 {[%clk 0:00:20]} 42. Rf2 {[%clk 0:00:12]}  Qe8 {[%clk 0:00:17]} 43. Qb6 {[%clk 0:00:11]}  d4 {[%clk 0:00:07]} 44. Qxd4 {[%clk 0:00:08]}  Qf7 {[%clk 0:00:07]} 45. c4 {[%clk 0:00:08]}  Bb1 {[%clk 0:00:04]} 46. Qc5 {[%clk 0:00:07]}  Bd3 {[%clk 0:00:04]} 47. Rd2 {[%clk 0:00:04]}  Bxc4 {[%clk 0:00:04]} 48. Bb8 {[%clk 0:00:02]}  Bd5 {[%clk 0:00:04]} 49. Bd6 {[%clk 0:00:03]}  Be4 {[%clk 0:00:04]} 50. Qe3 {[%clk 0:00:03]}  Qc4 {[%clk 0:00:04]} 51. h4 {[%clk 0:00:02]}  Qf1 {[%clk 0:00:04]} 52. Qh3 {[%clk 0:00:01]}  h5 {[%clk 0:00:04]} 0-1


[Site "https://www.chess.com"]